bitfinex-derivatives/quotes_ETHF0:USTF0_20240817
["timestamp","ask_amount","ask_price","bid_price","bid_amount"]
[1723895968035,0.36506041,2599.6,2599.5,3.37746828]
[1723895968228,0.36506041,2599.6,2599.5,5.39609645]
[1723895968636,0.36506041,2599.6,2599.5,3.37746828]
[1723895969033,0.36506041,2599.6,2599.5,5.39609645]
[1723895969333,0.36506041,2599.6,2599.5,3.3774706]
[1723895973744,0.36506041,2599.6,2599.5,1.4543]
[1723895973949,0.36506041,2599.6,2599.5,3.37748193]
[1723895975139,0.36506041,2599.6,2599.5,4.889036]
[1723895976332,0.36506041,2599.6,2599.5,3.37748193]
[1723895976538,0.00276041,2599.6,2599.5,14.70110379]
[1723895976746,0.00276041,2599.6,2599.5,20.89027562]
[1723895976944,0.00276041,2599.6,2599.5,22.25243724]
[1723895977237,0.00276041,2599.6,2599.5,24.73663949]
[1723895977630,0.00276041,2599.6,2599.5,27.25437269]
[1723895978142,0.00276041,2599.6,2599.5,22.25437269]
[1723895978645,0.00276041,2599.6,2599.5,15.89027562]
[1723895978942,0.00276041,2599.6,2599.5,14.78143949]
[1723895979149,0.00276041,2599.6,2599.5,15.88943949]
[1723895979344,0.00276041,2599.6,2599.5,19.73663949]
[1723895979545,0.00276041,2599.6,2599.5,15.88943949]
[1723895979744,0.00276041,2599.6,2599.5,12.04307562]
[1723895979940,0.00276041,2599.6,2599.5,15.88943949]
[1723895980546,0.00276041,2599.6,2599.5,12.04307562]
[1723895981147,0.00276041,2599.6,2599.5,10.60078562]
[1723895981342,0.00276041,2599.6,2599.5,17.90422592]
[1723895981643,0.00276041,2599.6,2599.5,17.90410207]
[1723895981846,0.00276041,2599.6,2599.5,14.05690207]
[1723895982640,0.00276041,2599.6,2599.5,12.04307562]
[1723895986650,9.377e-05,2599.6,2599.5,18.40717269]
[1723895987359,9.377e-05,2599.6,2599.5,18.40646673]
[1723895987734,9.377e-05,2599.6,2599.5,18.71257111]
[1723895988145,9.377e-05,2599.6,2599.5,15.50477111]
[1723895988348,9.377e-05,2599.6,2599.5,16.19483791]
[1723895988553,9.377e-05,2599.6,2599.5,18.71275618]
[1723895989841,9.377e-05,2599.6,2599.5,18.4066518]
[1723895990251,9.377e-05,2599.6,2599.5,8.45636857]
[1723895990453,9.377e-05,2599.6,2599.5,1.92294661]
[1723895990646,9.377e-05,2599.6,2599.5,4.54247102]
[1723895991043,4.20479377,2599.6,2599.5,4.54247102]
[1723895991247,4.20479377,2599.6,2599.5,4.03875571]
[1723895991747,4.20479377,2599.6,2599.5,2.1158091]
[1723895994151,4.20479377,2599.6,2599.5,4.03910799]
[1723895994646,4.20479377,2599.6,2599.5,2.1158091]
[1723895995851,4.20479377,2599.6,2599.5,4.03909737]
[1723895996050,4.20479377,2599.6,2599.5,3.03128827]
[1723895996439,4.20479377,2599.6,2599.5,4.03883533]
[1723895996645,4.20479377,2599.6,2599.5,4.03877447]
[1723895996844,4.20479377,2599.6,2599.5,2.11554706]
[1723896000443,16.27628432,2599.6,2599.1,2.11554706]
[1723896000648,3.2078,2599.2,2599.1,1.44251]
[1723896000959,7.055,2599.5,2599.0,1.00754706]
[1723896001156,0.3516,2599.1,2599.0,1.00754706]
[1723896001349,0.3516,2599.1,2599.0,4.87769339]
[1723896002151,0.3516,2599.1,2599.0,1.92360898]
[1723896002364,0.3516,2599.1,2599.0,2.115549]
[1723896003761,4.1988,2599.1,2599.0,2.115549]
[1723896004360,4.1988,2599.1,2599.0,1.108]
[1723896006154,5.64131,2599.1,2599.0,1.108]
[1723896010566,5.64131,2599.1,2598.8,1.108]
[1723896010567,1.44262,2598.9,2598.8,1.108]
[1723896010764,1.44268,2598.8,2598.6,1.108]
[1723896011070,0.3485,2598.7,2598.6,1.108]
[1723896011458,4.1965,2598.7,2598.6,1.108]
[1723896012067,5.63924,2598.7,2598.5,0.0100581]
[1723896012369,8.1638,2598.6,2598.1,1.108]
[1723896012554,2.55087,2598.5,2598.1,2.55106]
[1723896012865,1.44287,2598.5,2598.2,1.108]
[1723896013070,0.3451,2598.4,2598.2,1.108]
[1723896013271,0.3715,2598.3,2598.2,1.108]
[1723896013466,4.2203,2598.3,2598.2,1.11084388]
[1723896018065,0.3715,2598.3,2598.2,1.11084388]
[1723896018774,0.00577134,2598.5,2598.4,1.4429]
[1723896018980,0.00577134,2598.5,2598.4,5.7587]
[1723896019157,0.00577134,2598.5,2598.4,14.015114]
[1723896020878,0.00577134,2598.5,2598.4,5.515614]
[1723896021076,0.00577134,2598.5,2598.4,1.108]
[1723896022359,3.85457134,2598.5,2598.3,1.4561]
[1723896022561,0.3646,2598.4,2598.3,1.4561]
[1723896023172,4.2134,2598.4,2598.3,1.4561]
[1723896025166,4.2134,2598.4,2598.3,0.3481]
[1723896025369,4.2134,2598.4,2598.3,1.4561]
[1723896025677,0.3646,2598.4,2598.3,1.4561]
[1723896025863,0.00577134,2598.5,2598.3,1.4561]
[1723896026066,0.00577134,2598.5,2598.4,1.108]
[1723896027358,3.85457134,2598.5,2598.3,0.3481]
[1723896027559,3.8488,2598.4,2598.2,0.00284388]
[1723896027970,3.8488,2598.3,2598.2,0.00284388]
[1723896028165,3.8488,2598.4,2598.2,0.00284388]
[1723896028562,3.8488,2598.3,2598.2,0.00284388]
[1723896028869,1.11377134,2598.5,2598.2,1.11084388]
[1723896029074,0.00577134,2598.5,2598.4,1.108]
[1723896029281,1.44861134,2598.5,2598.4,1.108]
[1723896029478,5.29741134,2598.5,2598.4,1.108]
[1723896029978,5.29741134,2598.5,2598.2,0.00284388]
[1723896030272,1.44861134,2598.5,2598.2,0.00284388]
[1723896031574,1.4429,2598.4,2598.2,0.00284388]
[1723896033166,3.8488,2598.4,2598.2,0.00284388]
[1723896033367,8.86545,2598.3,2598.2,0.00284388]
[1723896033574,5.01665,2598.3,2598.2,0.00284388]
[1723896033773,8.86545,2598.3,2598.2,0.00284388]
[1723896033981,13.86545,2598.3,2598.2,0.00284388]
[1723896034186,1.44306,2598.1,2598.0,0.00577134]
[1723896034563,10.29186,2598.1,2598.0,0.00577134]
[1723896035083,10.29186,2598.1,2598.0,0.00988777]
[1723896042979,5.29186,2598.1,2598.0,0.00988777]
[1723896047480,2.17543,2598.2,2598.0,0.00988777]
[1723896048480,1.44306,2598.1,2598.0,0.00988777]
[1723896049191,5.29186,2598.1,2598.0,0.00988777]
[1723896049875,6.40086,2598.1,2598.0,0.00988777]
[1723896051180,9.60866,2598.1,2598.0,0.00988777]
[1723896052990,6.40086,2598.1,2598.0,0.00988777]
[1723896055199,3.21357134,2598.5,2598.0,1.11888777]
[1723896055497,1.11477134,2598.5,2598.2,2.552]
[1723896055686,0.00577134,2598.5,2598.3,1.109]
[1723896055881,0.00577134,2598.5,2598.4,1.109]
[1723896056690,0.00577134,2598.5,2598.3,1.109]
[1723896056991,0.00577134,2598.5,2598.3,2.55195]
[1723896057383,0.00577134,2598.5,2598.3,1.109]
[1723896057892,1.11477134,2598.5,2598.2,2.55198]
[1723896058096,1.11477134,2598.5,2598.2,3.559529]
[1723896058391,1.11477134,2598.5,2598.1,3.209649]
[1723896058786,1.109,2598.4,2598.1,2.100649]
[1723896058997,1.109,2598.4,2598.1,1.0931]
[1723896059591,1.109,2598.4,2598.1,2.2021]
[1723896059898,1.79924134,2598.5,2598.1,1.0931]
[1723896060987,4.6507,2598.4,2598.1,1.0931]
[1723896061292,4.65072,2598.4,2598.1,0.3779]
[1723896062088,1.44292,2598.4,2598.1,0.3779]
[1723896062293,3.2078,2598.3,2598.1,0.3779]
[1723896063390,0.3618,2598.2,2598.1,0.3779]
[1723896065295,1.80481,2598.2,2598.1,0.3779]
[1723896065486,5.65361,2598.2,2598.1,0.3779]
[1723896066003,1.44306,2598.1,2598.0,0.00988777]
[1723896066204,5.66496,2598.1,2598.0,0.00988777]
[1723896067400,4.2219,2598.1,2598.0,0.00988777]
[1723896067599,5.66496,2598.1,2598.0,0.00988777]
[1723896072008,8.87276,2598.1,2598.0,0.00988777]
[1723896072510,9.11203415,2598.1,2598.0,0.00988777]
[1723896074405,14.11203415,2598.1,2598.0,0.00988777]
[1723896074615,1.44328,2597.7,2597.6,0.3578]
[1723896074810,4.65106,2597.8,2597.6,0.3578]
[1723896075113,0.3779,2597.7,2597.6,0.3578]
[1723896075412,1.82118,2597.7,2597.6,0.3578]
[1723896075709,1.82411247,2597.7,2597.6,0.36275081]
[1723896075897,2.19401247,2597.7,2597.6,0.36275081]
[1723896076297,0.00293247,2597.7,2597.6,0.36275081]
[1723896082303,0.00293247,2597.7,2597.6,0.71135081]
[1723896082505,0.00293247,2597.7,2597.6,11.00429081]
[1723896082709,4.113,2598.2,2598.0,1.109]
[1723896082912,4.113,2598.2,2598.1,0.3582]
[1723896083705,4.11616142,2598.2,2598.1,0.3582]
[1723896084507,0.00316142,2598.2,2598.1,0.3582]
[1723896085212,0.00316142,2598.2,2598.1,4.207]
[1723896085418,0.00316142,2598.2,2598.1,13.58127203]
[1723896085715,0.00316142,2598.2,2598.1,14.45079974]
[1723896085911,0.00316142,2598.2,2598.1,12.93927533]
[1723896086308,0.00316142,2598.2,2598.1,14.44933697]
[1723896087319,0.00316142,2598.2,2598.1,9.44933697]
[1723896087619,0.00316142,2598.2,2598.1,9.44932029]
[1723896088417,0.00316142,2598.2,2598.1,1.72985062]
[1723896090320,0.00316142,2598.2,2598.1,5.57865062]
[1723896092216,0.00316142,2598.2,2598.1,7.50281835]
[1723896092715,0.00316142,2598.2,2598.1,5.57865062]
[1723896093123,0.00316142,2598.2,2598.1,4.5721]
[1723896093514,0.00316142,2598.2,2598.1,0.7233]
[1723896093718,0.00316142,2598.2,2598.1,4.5721]
[1723896094623,0.00316142,2598.2,2598.1,5.57865062]
[1723896095329,0.00316142,2598.2,2598.1,7.02171062]
[1723896095621,0.00577134,2598.5,2598.1,16.21403244]
[1723896095828,0.00577134,2598.5,2598.3,2.4487761]
[1723896096021,0.00577134,2598.5,2598.4,0.3745]
[1723896096427,0.00577134,2598.5,2598.4,4.2233]
[1723896096622,0.00851695,2598.5,2598.4,4.2233]
[1723896098627,0.00851695,2598.5,2598.4,3.8488]
[1723896099945,0.00851695,2598.5,2598.2,2.4488361]
[1723896101241,0.00851695,2598.5,2598.2,1.44298]
[1723896103825,0.00851695,2598.5,2598.4,1.108]
[1723896104238,0.00851695,2598.5,2598.4,4.9568]
[1723896104535,0.00851695,2598.5,2598.4,6.39969]
[1723896104728,0.00851695,2598.5,2598.4,9.32940244]
[1723896104928,0.00851695,2598.5,2598.4,8.32354634]
[1723896105140,0.00851695,2598.5,2598.4,7.40480481]
[1723896106237,0.00851695,2598.5,2598.4,6.39969]
[1723896106939,0.00851695,2598.5,2598.4,1.108]
[1723896107340,0.00851695,2598.5,2598.4,6.3997]
[1723896109045,0.00851695,2598.5,2598.4,1.108]
[1723896112237,0.00851695,2598.5,2598.4,6.3997]
[1723896112635,0.00851695,2598.5,2598.4,9.6075]
[1723896112840,0.00851695,2598.5,2598.4,15.61261481]
[1723896113048,3.2078,2599.3,2598.7,1.108]
[1723896113338,3.2078,2599.3,2599.2,1.108]
[1723896113733,3.2078,2599.3,2599.2,2.89625]
[1723896113939,3.21057887,2599.3,2599.2,2.89625]
[1723896115044,3.21057887,2599.3,2599.2,1.4538]
[1723896115939,3.21057887,2599.3,2599.2,0.3458]
[1723896116640,0.00277887,2599.3,2599.2,0.3458]
[1723896119336,0.00277887,2599.3,2599.2,5.63545]
[1723896121841,0.00277887,2599.3,2599.2,1.78825]
[1723896123253,0.00277887,2599.3,2599.0,0.00577134]
[1723896123747,1.44517887,2599.3,2599.0,0.00577134]
[1723896124052,1.44519887,2599.3,2599.0,0.00577134]
[1723896124355,0.3547,2599.2,2599.0,0.00577134]
[1723896125355,0.00277887,2599.3,2599.0,0.00577134]
[1723896125743,0.35517887,2599.3,2599.0,0.00577134]
[1723896129552,1.79757887,2599.3,2599.0,0.00577134]
[1723896130749,1.44246,2599.2,2599.0,0.00577134]
[1723896131544,0.35517887,2599.3,2599.0,0.00577134]
[1723896131741,1.44251,2599.1,2599.0,0.00577134]
[1723896132151,5.28971,2599.1,2599.0,0.00577134]
[1723896133345,8.49751,2599.1,2599.0,0.00577134]
[1723896133550,12.055,2599.1,2598.3,0.3416]
[1723896133854,3.2078,2599.1,2598.3,1.3456484]
[1723896134054,3.2078,2599.1,2598.3,0.3416]
[1723896134547,1.4427,2598.8,2598.4,0.00577134]
[1723896134752,0.7358,2598.7,2598.4,0.00577134]
[1723896136555,0.3708,2598.6,2598.4,0.00577134]
[1723896137851,0.7358,2598.7,2598.4,1.44866134]
[1723896138050,1.44265,2598.9,2598.4,1.44866134]
[1723896138951,1.44265,2598.9,2598.4,0.00577134]
[1723896139254,1.44268,2598.8,2598.4,0.00577134]
[1723896140264,4.65048,2598.8,2598.4,0.00577134]
[1723896141047,1.44268,2598.8,2598.4,0.00577134]
[1723896141265,4.65048,2598.8,2598.4,0.00577134]
[1723896141562,4.65048,2598.8,2598.4,1.44864134]
[1723896141563,3.2078,2598.8,2598.4,1.44864134]
[1723896141865,3.2078,2598.8,2598.4,0.00577134]
[1723896142069,4.65048,2598.8,2598.4,0.00577134]
[1723896143647,3.2078,2598.8,2598.4,1.44866134]
[1723896143854,3.2078,2598.8,2598.6,1.44276]
[1723896144253,3.2078,2598.8,2598.7,0.3579]
[1723896145269,3.2078,2598.8,2598.4,1.44866134]
[1723896145455,4.65047,2598.8,2598.5,0.3579]
[1723896147469,3.2078,2598.8,2598.5,0.3579]
[1723896147661,3.2078,2598.8,2598.5,1.80074]
[1723896147864,3.2078,2598.8,2598.6,1.44277]
[1723896149968,1.0788,2599.0,2598.6,1.44277]
[1723896150170,4.2866,2599.0,2598.6,1.44277]
[1723896150357,5.72917,2599.0,2598.5,1.80071]
[1723896151768,5.72917,2599.0,2598.5,2.8047584]
[1723896151971,5.72917,2599.0,2598.5,1.80071]
[1723896153968,5.72917,2599.0,2598.8,1.108]
[1723896154473,9.57717,2599.0,2598.8,1.108]
[1723896154662,7.7693,2599.0,2598.8,1.108]
[1723896154864,3.5527,2599.0,2598.9,1.4809]
[1723896156763,3.5527,2599.0,2598.9,2.92352]
[1723896156975,3.5527,2599.0,2598.9,1.4809]
[1723896158176,3.5527,2599.0,2598.9,2.92352]
[1723896158474,0.00277887,2599.3,2598.9,6.83896164]
[1723896158769,0.00277887,2599.3,2599.2,1.108]
[1723896158963,0.00277887,2599.3,2599.2,2.55045]
[1723896159166,0.00277887,2599.3,2599.2,7.11855]
[1723896159670,0.00277887,2599.3,2599.2,8.12367936]
[1723896159869,0.00277887,2599.3,2599.2,7.01567936]
[1723896160078,0.00277887,2599.3,2599.2,9.44395392]
[1723896163078,0.00277887,2599.3,2599.2,12.64798568]
[1723896163872,9.439e-05,2599.3,2599.2,11.14169228]
[1723896164080,9.439e-05,2599.3,2599.2,12.64767093]
[1723896164281,9.439e-05,2599.3,2599.2,12.64782155]
[1723896164578,9.439e-05,2599.3,2599.2,20.57670385]
[1723896164881,9.439e-05,2599.3,2599.2,22.5918111]
[1723896165275,9.439e-05,2599.3,2599.2,20.57670385]
[1723896166383,0.3651,2599.8,2599.6,1.44221]
[1723896166573,0.3651,2599.8,2599.7,0.366]
[1723896167277,0.3651,2599.8,2599.7,1.80817]
[1723896167503,0.3651,2599.8,2599.7,1.81309227]
[1723896167504,0.36990287,2599.8,2599.7,1.81309227]
[1723896167679,0.36990287,2599.8,2599.7,0.37092227]
[1723896167977,0.36990287,2599.8,2599.7,4.21732227]
[1723896168485,0.36990287,2599.8,2599.7,0.37092227]
[1723896169671,0.00480287,2599.8,2599.7,8.31849227]
[1723896169877,0.00248969,2599.8,2599.7,21.49216741]
[1723896170273,0.00248969,2599.8,2599.7,19.06653642]
[1723896170583,0.00248969,2599.8,2599.7,13.06431309]
[1723896171477,0.00248969,2599.8,2599.7,19.41443642]
[1723896171689,0.00248969,2599.8,2599.7,13.41221309]
[1723896174185,0.00248969,2599.8,2599.7,8.66639227]
[1723896178188,0.00248969,2599.8,2599.7,6.87632227]
[1723896178488,0.00248969,2599.8,2599.7,8.31849227]
[1723896179488,0.00248969,2599.8,2599.7,6.87632227]
[1723896180289,0.00248969,2599.8,2599.7,0.00492227]
[1723896180790,7.05668969,2599.8,2599.7,0.00492227]
[1723896181086,3.84888969,2599.8,2599.7,0.00492227]
[1723896181289,7.05668969,2599.8,2599.7,0.00492227]
[1723896181884,8.49880969,2599.8,2599.7,0.00492227]
[1723896182094,1.44219,2599.7,2599.5,1.108]
[1723896182282,1.44223,2599.6,2599.3,1.108]
[1723896182582,3.2078,2599.5,2599.3,1.108]
[1723896182885,7.055,2599.5,2599.3,1.108]
[1723896183082,7.055,2599.5,2599.3,1.11091679]
[1723896183683,3.8472,2599.5,2599.3,1.11091679]
[1723896183987,0.3655,2599.6,2599.3,1.11091679]
[1723896184190,0.3655,2599.6,2599.5,1.108]
[1723896184582,4.2127,2599.6,2599.5,1.108]
[1723896184987,0.3724,2599.7,2599.5,1.108]
[1723896185179,0.3415,2599.6,2599.4,0.3678]
[1723896187383,0.3415,2599.6,2599.3,0.00291679]
[1723896187579,0.3588,2599.5,2599.3,0.00291679]
[1723896189488,0.3588,2599.5,2599.3,1.44530679]
[1723896189687,0.3588,2599.5,2599.3,0.00291679]
[1723896189888,0.3588,2599.5,2599.3,1.44528679]
[1723896190393,0.3415,2599.6,2599.5,1.44228]
[1723896190894,0.3415,2599.6,2599.5,5.28948]
[1723896191284,0.3415,2599.6,2599.5,5.64568]
[1723896192092,0.00248969,2599.8,2599.5,5.64568]
[1723896192399,0.35218969,2599.8,2599.7,1.44217]
[1723896193286,0.35218969,2599.8,2599.6,1.4422]
[1723896194294,0.35218969,2599.8,2599.7,1.44217]
[1723896194798,0.35218969,2599.8,2599.6,1.4422]
[1723896198300,0.35218969,2599.8,2599.7,1.44217]
[1723896198484,0.00248969,2599.8,2599.7,1.44217]
[1723896198793,0.00248969,2599.8,2599.7,13.90888662]
[1723896199004,0.00248969,2599.8,2599.7,9.49859333]
[1723896199189,0.00248969,2599.8,2599.7,10.68431795]
[1723896199391,0.00248969,2599.8,2599.7,12.60727341]
[1723896199887,0.00248969,2599.8,2599.7,10.68431795]
[1723896200203,0.00248969,2599.8,2599.7,13.11004419]
[1723896200904,0.00248969,2599.8,2599.7,13.10995783]
[1723896202598,0.00248969,2599.8,2599.7,13.11070796]
[1723896202788,0.00248969,2599.8,2599.7,13.45960796]
[1723896203391,0.00248969,2599.8,2599.7,11.53677671]
[1723896203894,0.00248969,2599.8,2599.7,13.96892796]
[1723896204701,0.00248969,2599.8,2599.7,12.04610187]
[1723896204903,0.00248969,2599.8,2599.7,13.9689024]
[1723896205904,0.00248969,2599.8,2599.7,15.0769024]
[1723896206598,0.00248969,2599.8,2599.7,15.07695406]
[1723896207402,0.00248969,2599.8,2599.7,18.28475406]
[1723896207798,0.00248969,2599.8,2599.7,15.07695406]
[1723896208100,0.00248969,2599.8,2599.7,13.06184681]
[1723896208300,0.00248969,2599.8,2599.7,15.07695406]
[1723896211001,0.00248969,2599.8,2599.7,13.06184681]
[1723896211410,0.00248969,2599.8,2599.7,15.07695406]
[1723896212511,0.00248969,2599.8,2599.7,18.28475406]
[1723896214508,0.00248969,2599.8,2599.7,16.26964681]
[1723896215012,0.00248969,2599.8,2599.7,13.06184681]
[1723896215409,0.00248969,2599.8,2599.7,6.17046087]
[1723896215410,9.95688969,2599.8,2599.7,6.17046087]
[1723896215602,1.44234,2599.4,2599.3,0.00291679]
[1723896215800,4.65014,2599.4,2599.3,0.00291679]
[1723896216111,13.49734,2599.4,2599.3,0.00291679]
[1723896216699,1.44251,2599.1,2598.8,1.00499893]
[1723896216911,1.44251,2599.1,2599.0,1.108]
[1723896217409,5.28971,2599.1,2599.0,1.108]
[1723896217604,5.28971,2599.1,2599.0,1.11226478]
[1723896218108,5.28971,2599.1,2599.0,0.02366478]
[1723896218706,5.28971,2599.1,2599.0,0.03136478]
[1723896220112,0.3422,2599.2,2599.0,0.03136478]
[1723896221313,1.78465,2599.2,2599.0,0.03136478]
[1723896221508,3.8472,2599.1,2599.0,0.03136478]
[1723896221911,5.28971,2599.1,2599.0,0.03136478]
[1723896222208,10.28971,2599.1,2599.0,0.03136478]
[1723896223019,5.28971,2599.1,2599.0,0.03136478]
[1723896225523,3.8472,2599.1,2599.0,0.03136478]
[1723896227020,5.28971,2599.1,2599.0,0.03136478]
[1723896231209,8.49751,2599.1,2599.0,0.03136478]
[1723896238125,9.60551,2599.1,2599.0,0.03136478]
[1723896239931,6.39771,2599.1,2599.0,0.03136478]
[1723896240125,9.60551,2599.1,2599.0,0.03136478]
[1723896240535,14.60551,2599.1,2599.0,0.03136478]
[1723896242321,9.60551,2599.1,2599.0,0.03136478]
[1723896242722,8.163,2599.1,2599.0,0.03136478]
[1723896243029,9.60551,2599.1,2599.0,0.39566478]
[1723896244325,6.39771,2599.1,2599.0,0.39566478]
[1723896244526,3.2078,2599.2,2599.0,1.50366478]
[1723896245036,3.2078,2599.2,2599.1,0.3546]
[1723896245333,3.2078,2599.5,2599.1,1.4626]
[1723896245535,3.21028969,2599.8,2599.3,1.108]
[1723896245733,3.21028969,2599.8,2599.5,2.55025]
[1723896246035,0.00248969,2599.8,2599.6,0.7144]
[1723896246836,0.00248969,2599.8,2599.6,0.7338]
[1723896247135,0.00248969,2599.8,2599.7,1.108]
[1723896247334,0.00248969,2599.8,2599.6,1.8495]
[1723896247542,1.11048969,2599.8,2599.6,0.7415]
[1723896248037,0.00248969,2599.8,2599.6,0.7415]
[1723896249538,0.00248969,2599.8,2599.6,2.18373]
[1723896253632,0.00248969,2599.8,2599.6,0.7415]
[1723896258536,0.00248969,2599.8,2599.6,2.18372]
[1723896258744,0.00248969,2599.8,2599.6,0.7415]
[1723896267457,0.00248969,2599.8,2599.6,2.18373]
[1723896267753,0.00248969,2599.8,2599.7,1.44217]
[1723896267970,0.00248969,2599.8,2599.6,2.1643]
[1723896269758,0.00248969,2599.8,2599.6,2.1837]
[1723896269952,0.00248969,2599.8,2599.7,1.108]
[1723896270757,0.00248969,2599.8,2599.7,2.55017]
[1723896270964,0.00248969,2599.8,2599.7,6.39657]
[1723896271160,0.00012759,2599.8,2599.7,6.39657]
[1723896276771,0.00012759,2599.8,2599.7,6.40427]
[1723896283871,0.00012759,2599.8,2599.7,7.40926893]
[1723896284071,0.00012759,2599.8,2599.7,0.0077]
[1723896284271,0.00012759,2599.8,2599.7,1.1157]
[1723896288482,0.00012759,2599.8,2599.7,2.12069893]
[1723896288682,0.00012759,2599.8,2599.7,4.04384394]
[1723896288885,0.00012759,2599.8,2599.7,4.04382109]
[1723896289386,0.00012759,2599.8,2599.7,4.54632056]
[1723896290085,0.00012759,2599.8,2599.7,5.98849056]
[1723896290275,0.00012759,2599.8,2599.7,4.48099216]
[1723896290481,0.00012759,2599.8,2599.7,4.50039216]
[1723896291283,0.00012759,2599.8,2599.7,14.19849908]
[1723896291476,0.00012759,2599.8,2599.7,12.19303649]
[1723896291884,0.00012759,2599.8,2599.7,14.20842126]
[1723896292686,0.00012759,2599.8,2599.7,12.19303649]
[1723896293386,0.00012759,2599.8,2599.7,12.19250006]
[1723896293580,0.00012759,2599.8,2599.7,14.20788241]
[1723896294378,0.00012759,2599.8,2599.7,12.19250006]
[1723896295390,0.00012759,2599.8,2599.7,14.71041833]
[1723896296583,0.00012759,2599.8,2599.7,12.19250006]
[1723896297294,0.00012759,2599.8,2599.7,15.40030006]
[1723896297684,0.00012759,2599.8,2599.7,11.55433509]
[1723896297894,0.00012759,2599.8,2599.7,15.40006528]
[1723896298094,0.00012759,2599.8,2599.7,17.91798355]
[1723896298589,0.00012759,2599.8,2599.7,15.40006528]
[1723896298886,0.00012759,2599.8,2599.7,6.51539274]
[1723896299888,0.00012759,2599.8,2599.7,10.36144467]
[1723896301579,0.00012759,2599.8,2599.7,7.81127467]
[1723896301785,0.00012759,2599.8,2599.7,8.9192441]
[1723896301986,0.00012759,2599.8,2599.7,5.07322274]
[1723896303286,0.00012759,2599.8,2599.7,6.51539274]
[1723896303490,0.00012759,2599.8,2599.7,10.36150985]
[1723896303693,0.00012759,2599.8,2599.7,8.3462522]
[1723896303992,0.00012759,2599.8,2599.7,10.36184629]
[1723896305189,0.00012759,2599.8,2599.7,10.36189587]
[1723896306195,0.00012759,2599.8,2599.7,8.34630178]
[1723896308395,0.00012759,2599.8,2599.7,10.86422005]
[1723896308591,0.00012759,2599.8,2599.7,8.34630178]
[1723896309393,0.00012759,2599.8,2599.7,10.86422005]
[1723896309594,0.00012759,2599.8,2599.7,10.86399379]
[1723896309999,0.00012759,2599.8,2599.7,8.34607552]
[1723896310494,0.00012759,2599.8,2599.7,10.86399379]
[1723896312296,0.00012759,2599.8,2599.7,8.34607552]
[1723896312793,0.00012759,2599.8,2599.7,10.867491]
[1723896314086,0.00012759,2599.8,2599.7,10.86780572]
[1723896314291,0.00012759,2599.8,2599.7,8.34602227]
[1723896316990,5.75755,2600.5,2599.7,19.15594854]
[1723896316991,5.72445673,2600.5,2599.7,19.15594854]
[1723896317196,3.2078,2600.5,2600.4,2.11673156]
[1723896317396,3.44665401,2600.5,2600.4,4.03944529]
[1723896317595,7.29225401,2600.5,2600.4,4.03944529]
[1723896318095,7.29713253,2600.5,2600.4,1.00873156]
[1723896319196,7.29713253,2600.5,2600.4,1.03583156]
[1723896320096,4.08933253,2600.5,2600.4,1.03583156]
[1723896320302,7.29713253,2600.5,2600.4,1.03583156]
[1723896320597,7.05827852,2600.5,2600.4,1.03583156]
[1723896320797,7.29713918,2600.5,2600.4,1.03583156]
[1723896321005,7.29713529,2600.5,2600.4,1.03583156]
[1723896321393,7.29713529,2600.5,2600.4,0.0271]
[1723896321795,7.29713529,2600.5,2600.4,1.03583156]
[1723896321992,7.05827852,2600.5,2600.4,2.95855219]
[1723896322198,7.05827852,2600.5,2600.4,1.03583156]
[1723896323408,3.85047852,2600.5,2600.4,2.95853153]
[1723896324300,3.85047852,2600.5,2600.4,1.03583156]
[1723896326998,8.40517683,2600.5,2600.4,0.0271]
[1723896327202,8.16627852,2600.5,2600.4,0.0271]
[1723896327993,3.85047852,2600.5,2600.4,0.0271]
[1723896330703,3.85047852,2600.5,2600.4,1.03583156]
[1723896331301,3.85047852,2600.5,2600.4,0.0271]
[1723896333902,0.00487852,2600.5,2600.4,0.0271]
[1723896334707,0.00487852,2600.5,2600.4,1.03583156]
[1723896334902,0.00487852,2600.5,2600.4,0.0271]
[1723896339918,9.84691922,2600.5,2600.4,0.0271]
[1723896340116,14.60800852,2600.5,2600.4,0.0271]
[1723896340418,14.84690987,2600.5,2600.4,0.0271]
[1723896341823,14.84692282,2600.5,2600.4,0.0271]
[1723896342506,14.84692117,2600.5,2600.4,0.0271]
[1723896343020,8.73892117,2600.5,2600.4,0.0271]
[1723896343213,8.50000852,2600.5,2600.4,0.0271]
[1723896344022,7.05827852,2600.5,2600.4,0.0271]
[1723896346516,8.50000852,2600.5,2600.4,0.0271]
[1723896346711,8.73890824,2600.5,2600.4,0.0271]
[1723896346916,8.97780815,2600.5,2600.4,0.0271]
[1723896347131,8.73890824,2600.5,2600.4,0.0271]
[1723896347319,8.97780762,2600.5,2600.4,0.0271]
[1723896349021,5.77000762,2600.5,2600.4,0.0271]
[1723896349221,8.97780762,2600.5,2600.4,0.0271]
[1723896349522,8.73890824,2600.5,2600.4,0.0271]
[1723896349724,8.73891411,2600.5,2600.4,0.0271]
[1723896349915,5.53111411,2600.5,2600.4,0.0271]
[1723896350117,8.73891411,2600.5,2600.4,0.0271]
[1723896350924,8.50000852,2600.5,2600.4,0.0271]
[1723896351230,8.73890894,2600.5,2600.4,0.0271]
[1723896351724,8.73890894,2600.5,2600.4,0.7358]
[1723896352028,8.73890894,2600.5,2600.4,1.0797]
[1723896352219,0.24377894,2600.5,2600.4,1.0797]
[1723896352413,0.00487852,2600.5,2600.4,1.0797]
[1723896353123,0.00487852,2600.5,2600.4,2.08843156]
[1723896354124,0.24375334,2600.5,2600.4,1.0797]
[1723896354319,0.00487852,2600.5,2600.4,2.08843156]
[1723896354520,1.68548806,2600.5,2600.4,1.0797]
[1723896354822,1.44660852,2600.5,2600.4,2.08843156]
[1723896355019,1.68548862,2600.5,2600.4,1.0797]
[1723896355225,0.24375862,2600.5,2600.4,1.0797]
[1723896355415,0.00487852,2600.5,2600.4,2.08843156]
[1723896355625,0.24374972,2600.5,2600.4,2.08843156]
[1723896355826,0.00487852,2600.5,2600.4,2.08843156]
[1723896357624,0.00487852,2600.5,2600.4,4.01110877]
[1723896357830,0.00487852,2600.5,2600.4,2.08843156]
[1723896358125,0.00487852,2600.5,2600.4,4.01111324]
[1723896358332,0.00487852,2600.5,2600.4,4.01110289]
[1723896358533,0.00487852,2600.5,2600.4,4.01110029]
[1723896358721,0.00487852,2600.5,2600.4,4.01008543]
[1723896358920,0.00487852,2600.5,2600.4,3.00236873]
[1723896359122,0.00487852,2600.5,2600.4,4.51546607]